[Event "10th Cesme Open-A 2024"]
[Site "Cesme"]
[Date "2024.06.28"]
[Round "7"]
[White "Zeynalli, Rashad"]
[Black "Demirbag, Alihan"]
[Result "1-0"]
[ECO "D00"]
[WhiteElo "2127"]
[BlackElo "2055"]
[Annotator "RC"]
[PlyCount "89"]
[EventDate "2024.06.23"]
[EventType "swiss"]
[EventCountry "TUR"]
[SourceTitle "playchess.com"]
[Source "ChessBase"]
[SourceQuality "1"]
[TimeControl "5400+30"]

1. d4 {[%emt 0:01:00]} d5 {[%emt 0:02:00]} 2. Bg5 {[%emt 0:00:30]} f6 {[%emt 0:09:30]} 3. Bf4 {[%emt 0:00:00]} c5 {[%emt 0:07:30]} 4. e3 {[%emt 0:02:00]} Nc6 {[%emt 0:00:30]} 5. Nc3 {[%emt 0:08:30]} e5 {[%emt 0:10:30]} 6. dxe5 {[%emt 0:02:30]} fxe5 {[%emt 0:00:00]} 7. Bg3 {[%emt 0:05:30]} Nf6 {[%emt 0:02:00]} 8. Nf3 {[%emt 0:07:30]} Bg4 {[%emt 0:02:30]} 9. h3 {[%emt 0:02:30]} Bh5 {[%emt 0:00:30]} 10. Be2 {[%emt 0:01:30]} d4 {[%emt 0:07:30]} 11. Nxe5 {[%emt 0:02:30]} Bxe2 {[%emt 0:07:30]} 12. Nxe2 {[%emt 0:01:30]} dxe3 {[%emt 0:03:30]} 13. fxe3 {[%emt 0:05:30]} Qc8 {[%emt 0:08:30]} 14. Qd3 {[%emt 0:03:30]} Be7 {[%emt 0:03:30]} 15. Qc4 {[%emt 0:02:30]} Nxe5 {[%emt 0:00:30]} 16. Bxe5 {[%emt 0:00:00]} Qc6 {[%emt 0:02:30]} 17. Nc3 {[%emt 0:04:00]} a6 {[%emt 0:03:30]} 18. Bxf6 {[%emt 0:01:30]} Bxf6 {[%emt 0:00:30]} 19. Nd5 {[%emt 0:03:30]} O-O-O {[%emt 0:01:30]} 20. O-O-O {[%emt 0:00:30]} Kb8 {[%emt 0:01:30]} 21. Rhf1 {[%emt 0:07:30]} Rhe8 {[%emt 0:00:30]} 22. e4 {[%emt 0:04:30]} Rd6 {[%emt 0:03:30]} 23. Nxf6 {[%emt 0:01:30]} gxf6 {[%emt 0:02:42]} 24. Rd5 {[%emt 0:03:30]} Rde6 {[%emt 0:04:14]} 25. Qxc5 {[%emt 0:01:30]} Qxc5 {[%emt 0:00:30]} 26. Rxc5 {[%emt 0:00:30]} Rxe4 {[%emt 0:00:00]} 27. Rcf5 {[%emt 0:00:00]} Re1+ {[%emt 0:02:10]} 28. Rxe1 {[%emt 0:01:00]} Rxe1+ {[%emt 0:00:01]} 29. Kd2 {[%emt 0:00:00]} Rg1 {[%emt 0:00:05]} 30. g4 {[%emt 0:02:00]} Rg2+ {[%emt 0:01:16]} 31. Kd1 {[%emt 0:00:00]} Rg1+ {[%emt 0:00:17]} 32. Ke2 {[%emt 0:00:00]} Rg2+ {[%emt 0:00:06]} 33. Rf2 {[%emt 0:00:30]} Rg3 {[%emt 0:00:07]} 34. Rh2 {[%emt 0:01:30]} Rg1 {[%emt 0:00:28]} 35. Kf3 {[%emt 0:02:30]} Kc7 {[%emt 0:01:21]} 36. Rd2 {[%emt 0:01:30]} Ra1 {[%emt 0:05:28]} 37. a3 {[%emt 0:01:30]} Rb1 {[%emt 0:00:07]} 38. b3 {[%emt 0:00:30]} b5 {[%emt 0:02:25]} 39. Ke4 {[%emt 0:01:30]} Rh1 {[%emt 0:01:10]} 40. Rd3 {[%emt 0:00:30]} Rh2 {[%emt 0:00:32]} 41. Kf5 {[%emt 0:01:30]} Rf2+ {[%emt 0:02:19]} 42. Ke6 {[%emt 0:00:30]} h6 {[%emt 0:01:07]} 43. b4 {[%emt 0:03:29]} Kc8 {[%emt 0:05:18]} 44. Rc3+ {[%emt 0:02:17]} Kb7 {[%emt 0:00:38]} 45. Kf7 {[%emt 0:01:09]} 1-0

[Event "10th Cesme Open-A 2024"]
[Site "Cesme"]
[Date "2024.06.28"]
[Round "7"]
[White "Baylav, Can"]
[Black "Demirtas, Alper"]
[Result "0-1"]
[ECO "B40"]
[WhiteElo "2118"]
[BlackElo "2057"]
[Annotator "RC"]
[PlyCount "98"]
[EventDate "2024.06.23"]
[EventType "swiss"]
[EventCountry "TUR"]
[SourceTitle "playchess.com"]
[Source "ChessBase"]
[SourceQuality "1"]
[TimeControl "5400+30"]

1. e4 {[%emt 0:04:00]} e6 {[%emt 0:01:00]} 2. d4 {[%emt 0:00:30]} d5 {[%emt 0:00:30]} 3. Nd2 {[%emt 0:00:30]} c5 {[%emt 0:00:30]} 4. Ngf3 {[%emt 0:00:30]} cxd4 {[%emt 0:00:00]} 5. Nxd4 {[%emt 0:01:30]} Nc6 {[%emt 0:00:00]} 6. Nxc6 {[%emt 0:00:30]} bxc6 {[%emt 0:00:00]} 7. Bd3 {[%emt 0:01:30]} Nf6 {[%emt 0:11:00]} 8. Qe2 {[%emt 0:00:30]} Be7 {[%emt 0:01:30]} 9. O-O {[%emt 0:01:30]} O-O {[%emt 0:01:30]} 10. Re1 {[%emt 0:01:30]} Nd7 {[%emt 0:09:30]} 11. c3 {[%emt 0:00:30]} a5 {[%emt 0:04:30]} 12. e5 {[%emt 0:02:30]} Nc5 {[%emt 0:03:30]} 13. Bc2 {[%emt 0:01:30]} Ba6 {[%emt 0:00:30]} 14. Qe3 {[%emt 0:05:30]} Qb6 {[%emt 0:06:30]} 15. Qh3 {[%emt 0:10:30]} g6 {[%emt 0:04:30]} 16. Rb1 {[%emt 0:07:30]} Rfc8 {[%emt 0:11:30]} 17. b4 {[%emt 0:01:30]} Nd7 {[%emt 0:00:30]} 18. Nf3 {[%emt 0:00:30]} Qd8 {[%emt 0:03:30]} 19. Qh6 {[%emt 0:05:30]} Qf8 {[%emt 0:05:30]} 20. Qf4 {[%emt 0:00:30]} axb4 {[%emt 0:03:30]} 21. cxb4 {[%emt 0:00:00]} Bb5 {[%emt 0:01:30]} 22. a3 {[%emt 0:02:00]} Ba4 {[%emt 0:02:30]} 23. Bd3 {[%emt 0:06:30]} c5 {[%emt 0:00:30]} 24. b5 {[%emt 0:01:30]} Rcb8 {[%emt 0:01:30]} 25. Qd2 {[%emt 0:02:30]} Qd8 {[%emt 0:04:30]} 26. Bc2 {[%emt 0:01:30]} Bxb5 {[%emt 0:01:30]} 27. h4 {[%emt 0:00:30]} Ba4 {[%emt 0:02:57]} 28. Rxb8 {[%emt 0:00:30]} Qxb8 {[%emt 0:00:32]} 29. h5 {[%emt 0:01:30]} Bxc2 {[%emt 0:01:50]} 30. Qxc2 {[%emt 0:04:30]} Qb5 {[%emt 0:00:02]} 31. Re3 {[%emt 0:02:30]} Qa4 {[%emt 0:01:41]} 32. Qd2 {[%emt 0:00:30]} Rb8 {[%emt 0:01:52]} 33. hxg6 {[%emt 0:01:30]} hxg6 {[%emt 0:00:40]} 34. Rd3 {[%emt 0:00:00]} Rb1 {[%emt 0:01:38]} 35. Kh2 {[%emt 0:00:00]} Qe4 {[%emt 0:02:58]} 36. Re3 {[%emt 0:02:30]} Qg4 {[%emt 0:01:47]} 37. a4 {[%emt 0:01:30]} Qf4+ {[%emt 0:04:24]} 38. g3 {[%emt 0:00:30]} Qxa4 {[%emt 0:01:16]} 39. Re1 {[%emt 0:00:30]} Qg4 {[%emt 0:01:20]} 40. Kg2 {[%emt 0:03:30]} Rb3 {[%emt 0:00:01]} 41. Qd1 {[%emt 0:00:30]} c4 {[%emt 0:00:37]} 42. Rh1 {[%emt 0:02:30]} Rd3 {[%emt 0:00:30]} 43. Qe2 {[%emt 0:00:00]} Nxe5 {[%emt 0:02:02]} 44. Bb2 {[%emt 0:00:00]} c3 {[%emt 0:01:40]} 45. Bxc3 {[%emt 0:00:30]} Rxc3 {[%emt 0:00:30]} 46. Rh8+ {[%emt 0:00:30]} Kg7 {[%emt 0:00:25]} 47. Qxe5+ {[%emt 0:00:30]} Bf6 {[%emt 0:00:02]} 48. Rg8+ {[%emt 0:00:30]} Kxg8 {[%emt 0:00:30]} 49. Qxf6 {[%emt 0:00:30]} Qxf3+ {[%emt 0:00:00]} 0-1

[Event "10th Cesme Open-A 2024"]
[Site "Cesme"]
[Date "2024.06.28"]
[Round "7"]
[White "Isgenderova, Hayale"]
[Black "Caputcuoglu, Zeki Berke"]
[Result "0-1"]
[ECO "C41"]
[WhiteElo "2103"]
[BlackElo "2239"]
[Annotator "RC"]
[PlyCount "80"]
[EventDate "2024.06.23"]
[EventType "swiss"]
[EventCountry "TUR"]
[SourceTitle "playchess.com"]
[Source "ChessBase"]
[SourceQuality "1"]
[TimeControl "5400+30"]

1. e4 {[%emt 0:01:00]} e5 {[%emt 0:14:00]} 2. Nf3 {[%emt 0:00:30]} d6 {[%emt 0:00:00]} 3. Bc4 {[%emt 0:00:30]} Nf6 {[%emt 0:00:00]} 4. Ng5 {[%emt 0:01:30]} d5 {[%emt 0:02:30]} 5. exd5 {[%emt 0:01:30]} Bc5 {[%emt 0:00:30]} 6. d4 {[%emt 0:09:30]} Bxd4 {[%emt 0:04:30]} 7. c3 {[%emt 0:01:30]} Bb6 {[%emt 0:02:30]} 8. a4 {[%emt 0:06:30]} O-O {[%emt 0:09:30]} 9. a5 {[%emt 0:18:30]} Bc5 {[%emt 0:01:30]} 10. b4 {[%emt 0:00:30]} Bd6 {[%emt 0:00:30]} 11. Nd2 {[%emt 0:06:30]} e4 {[%emt 0:05:30]} 12. Be2 {[%emt 0:08:30]} Re8 {[%emt 0:02:30]} 13. Nc4 {[%emt 0:01:30]} h6 {[%emt 0:10:30]} 14. Nh3 {[%emt 0:01:30]} Bxh3 {[%emt 0:02:30]} 15. gxh3 {[%emt 0:00:00]} Qd7 {[%emt 0:01:30]} 16. Be3 {[%emt 0:08:00]} Qxh3 {[%emt 0:06:30]} 17. Qd4 {[%emt 0:01:30]} Nbd7 {[%emt 0:05:30]} 18. O-O-O {[%emt 0:01:30]} Ne5 {[%emt 0:00:30]} 19. Nxd6 {[%emt 0:00:30]} cxd6 {[%emt 0:00:00]} 20. Rhg1 {[%emt 0:01:30]} Kh7 {[%emt 0:01:00]} 21. Rg3 {[%emt 0:01:30]} Qf5 {[%emt 0:00:30]} 22. Rdg1 {[%emt 0:00:30]} g6 {[%emt 0:00:30]} 23. Qd2 {[%emt 0:03:30]} Nf3 {[%emt 0:02:30]} 24. Bxf3 {[%emt 0:04:30]} exf3 {[%emt 0:00:30]} 25. Qd4 {[%emt 0:03:53]} Nxd5 {[%emt 0:02:30]} 26. Bxh6 {[%emt 0:00:39]} Kxh6 {[%emt 0:01:30]} 27. Qd2+ {[%emt 0:08:14]} Qf4 {[%emt 0:01:30]} 28. Rxf3 {[%emt 0:02:44]} Qxd2+ {[%emt 0:00:00]} 29. Kxd2 {[%emt 0:00:15]} Kg7 {[%emt 0:00:00]} 30. Rd3 {[%emt 0:00:09]} Re5 {[%emt 0:01:30]} 31. Rd1 {[%emt 0:00:59]} Rc8 {[%emt 0:00:30]} 32. Re1 {[%emt 0:01:48]} Rxe1 {[%emt 0:00:30]} 33. Kxe1 {[%emt 0:00:03]} Nxc3 {[%emt 0:00:30]} 34. Rxd6 {[%emt 0:00:03]} Rc4 {[%emt 0:00:00]} 35. Rd3 {[%emt 0:03:37]} Ne4 {[%emt 0:00:00]} 36. Rb3 {[%emt 0:00:58]} Kf6 {[%emt 0:01:30]} 37. Ke2 {[%emt 0:00:30]} Rc3 {[%emt 0:00:00]} 38. Rb2 {[%emt 0:00:42]} Ke6 {[%emt 0:00:00]} 39. f3 {[%emt 0:01:36]} Nf6 {[%emt 0:00:30]} 40. b5 {[%emt 0:00:41]} Nd5 {[%emt 0:00:30]} 0-1

[Event "10th Cesme Open-A 2024"]
[Site "Cesme"]
[Date "2024.06.28"]
[Round "7"]
[White "Anacak, Hasan Gunes"]
[Black "Demirbas, Emre"]
[Result "1-0"]
[ECO "B45"]
[WhiteElo "2095"]
[BlackElo "2012"]
[Annotator "NA RC"]
[PlyCount "45"]
[EventDate "2024.06.23"]
[EventType "swiss"]
[EventCountry "TUR"]
[SourceTitle "playchess.com"]
[Source "ChessBase"]
[SourceQuality "1"]
[TimeControl "5400+30"]

1. e4 {[%emt 0:01:00]} c5 {[%emt 0:02:00]} 2. Nf3 {[%emt 0:00:30]} e6 {[%emt 0:00:30]} 3. d4 {[%emt 0:00:30]} cxd4 {[%emt 0:00:30]} 4. Nxd4 {[%emt 0:00:30]} Nf6 {[%emt 0:00:30]} 5. Nc3 {[%emt 0:00:30]} Nc6 {[%emt 0:00:30]} 6. a3 {[%emt 0:00:30]} Be7 {[%emt 0:00:30]} 7. Nxc6 {[%emt 0:00:00]} bxc6 {[%emt 0:01:30]} 8. e5 {[%emt 0:00:00]} Nd5 {[%emt 0:00:30]} 9. Qg4 {[%emt 0:00:00]} g6 {[%emt 0:02:30]} 10. Qg3 {[%emt 0:00:00]} d6 {[%emt 0:08:30]} 11. Ne4 {[%emt 0:00:00]} dxe5 {[%emt 0:00:30]} 12. c4 {[%emt 0:00:00]} Nf4 {[%emt 0:08:30]} 13. Qc3 {[%emt 0:00:30]} O-O {[%emt 0:01:30]} 14. Qxe5 {[%emt 0:01:30]} Nd3+ {[%emt 0:05:30]} 15. Bxd3 {[%emt 0:00:30]} Qxd3 {[%emt 0:00:30]} 16. Nf6+ {[%emt 0:00:00]} Bxf6 {[%emt 0:00:30]} 17. Qxf6 {[%emt 0:00:00]} Rd8 {[%emt 0:01:30]} 18. f3 {[%emt 0:00:00]} Ba6 {[%emt 0:05:30]} 19. b3 {[%emt 0:00:00]} Qd1+ {[%emt 0:14:30]} 20. Kf2 {[%emt 0:00:30]} Qxb3 {[%emt 0:00:00]} 21. Kg3 {[%emt 0:27:30]} Rab8 {[%emt 0:28:58]} 22. Bf4 {[%emt 0:03:30]} Bxc4 {[%emt 0:08:17]} 23. Rab1 {[%emt 0:03:30]} 1-0

[Event "10th Cesme Open-A 2024"]
[Site "Cesme"]
[Date "2024.06.28"]
[Round "7"]
[White "Aliyev, Elnur"]
[Black "Nazarian, Arash"]
[Result "0-1"]
[ECO "C02"]
[WhiteElo "2073"]
[BlackElo "2007"]
[Annotator "RC"]
[PlyCount "127"]
[EventDate "2024.06.23"]
[EventType "swiss"]
[EventCountry "TUR"]
[SourceTitle "playchess.com"]
[Source "ChessBase"]
[SourceQuality "1"]
[TimeControl "5400+30"]

1. e4 {[%emt 0:01:00]} e6 {[%emt 0:01:00]} 2. d4 {[%emt 0:00:30]} d5 {[%emt 0:00:30]} 3. e5 {[%emt 0:00:00]} c5 {[%emt 0:00:00]} 4. c3 {[%emt 0:00:00]} Nc6 {[%emt 0:00:00]} 5. Nf3 {[%emt 0:00:00]} Qb6 {[%emt 0:00:00]} 6. Bd3 {[%emt 0:00:00]} cxd4 {[%emt 0:00:00]} 7. cxd4 {[%emt 0:00:00]} Bd7 {[%emt 0:00:30]} 8. O-O {[%emt 0:00:00]} Nxd4 {[%emt 0:01:30]} 9. Nbd2 {[%emt 0:00:30]} Ne7 {[%emt 0:10:30]} 10. Nxd4 {[%emt 0:00:30]} Qxd4 {[%emt 0:00:30]} 11. Nf3 {[%emt 0:00:00]} Qb6 {[%emt 0:05:30]} 12. Be3 {[%emt 0:08:00]} Qd8 {[%emt 0:01:30]} 13. h4 {[%emt 0:01:30]} Nc6 {[%emt 0:12:30]} 14. a3 {[%emt 0:10:30]} Be7 {[%emt 0:02:30]} 15. b4 {[%emt 0:00:30]} a6 {[%emt 0:05:30]} 16. h5 {[%emt 0:18:30]} f5 {[%emt 0:03:30]} 17. exf6 {[%emt 0:16:30]} Bxf6 {[%emt 0:01:30]} 18. Qc2 {[%emt 0:00:30]} Bxa1 {[%emt 0:10:30]} 19. Rxa1 {[%emt 0:08:30]} Qf6 {[%emt 0:11:30]} 20. Re1 {[%emt 0:01:30]} h6 {[%emt 0:03:30]} 21. Bg6+ {[%emt 0:03:30]} Kf8 {[%emt 0:01:30]} 22. Qc5+ {[%emt 0:00:30]} Kg8 {[%emt 0:04:30]} 23. Qd6 {[%emt 0:05:30]} Be8 {[%emt 0:03:44]} 24. Bd4 {[%emt 0:22:16]} Nxd4 {[%emt 0:06:31]} 25. Nxd4 {[%emt 0:00:01]} Bxg6 {[%emt 0:02:20]} 26. hxg6 {[%emt 0:00:49]} Rf8 {[%emt 0:06:39]} 27. Nf3 {[%emt 0:00:06]} Qxg6 {[%emt 0:01:21]} 28. Rxe6 {[%emt 0:00:14]} Rf6 {[%emt 0:00:43]} 29. Rxf6 {[%emt 0:00:47]} Qxf6 {[%emt 0:00:30]} 30. Qxd5+ {[%emt 0:00:30]} Kh7 {[%emt 0:00:00]} 31. Qe4+ {[%emt 0:02:36]} Qg6 {[%emt 0:00:49]} 32. Qxb7 {[%emt 0:00:04]} Rd8 {[%emt 0:00:00]} 33. g3 {[%emt 0:00:55]} Qh5 {[%emt 0:02:41]} 34. Kg2 {[%emt 0:00:33]} Qb5 {[%emt 0:01:13]} 35. Qe4+ {[%emt 0:00:30]} Kh8 {[%emt 0:01:02]} 36. Kh2 {[%emt 0:00:25]} Qd5 {[%emt 0:00:43]} 37. Qf4 {[%emt 0:00:31]} Kg8 {[%emt 0:00:54]} 38. Kg2 {[%emt 0:00:59]} Rf8 {[%emt 0:00:30]} 39. Qe3 {[%emt 0:00:00]} Rf6 {[%emt 0:00:17]} 40. g4 {[%emt 0:00:34]} Re6 {[%emt 0:00:32]} 41. Qc3 {[%emt 0:00:35]} Re4 {[%emt 0:00:35]} 42. Kg3 {[%emt 0:00:49]} Qd6+ {[%emt 0:00:02]} 43. Kh3 {[%emt 0:00:07]} Qf4 {[%emt 0:01:15]} 44. Qc8+ {[%emt 0:00:53]} Kh7 {[%emt 0:00:01]} 45. Qf5+ {[%emt 0:00:26]} Qxf5 {[%emt 0:00:30]} 46. gxf5 {[%emt 0:00:30]} Rf4 {[%emt 0:00:00]} 47. Kg3 {[%emt 0:00:24]} Rxf5 {[%emt 0:00:00]} 48. Nd2 {[%emt 0:00:50]} Rd5 {[%emt 0:00:00]} 49. Nc4 {[%emt 0:00:26]} Rd3+ {[%emt 0:00:00]} 50. f3 {[%emt 0:00:26]} Rc3 {[%emt 0:00:00]} 51. Ne5 {[%emt 0:00:27]} Rxa3 {[%emt 0:00:00]} 52. Nd7 {[%emt 0:00:22]} Ra4 {[%emt 0:00:13]} 53. Nc5 {[%emt 0:00:30]} Rxb4 {[%emt 0:00:00]} 54. Nxa6 {[%emt 0:00:00]} Rc4 {[%emt 0:00:10]} 55. Nb8 {[%emt 0:00:00]} h5 {[%emt 0:01:00]} 56. Nd7 {[%emt 0:00:00]} g5 {[%emt 0:00:25]} 57. Ne5 {[%emt 0:01:03]} Rc3 {[%emt 0:00:05]} 58. Kf2 {[%emt 0:00:22]} Kg7 {[%emt 0:00:09]} 59. Nd7 {[%emt 0:00:39]} Kf7 {[%emt 0:00:59]} 60. Nb6 {[%emt 0:01:21]} Ke6 {[%emt 0:00:06]} 61. Ke2 {[%emt 0:00:29]} Kd6 {[%emt 0:01:28]} 62. Na4 {[%emt 0:00:24]} Rb3 {[%emt 0:00:31]} 63. Kd2 {[%emt 0:00:34]} Rxf3 {[%emt 0:00:37]} 64. Ke1 {[%emt 0:00:43]} 0-1

[Event "10th Cesme Open-A 2024"]
[Site "Cesme"]
[Date "2024.06.28"]
[Round "7"]
[White "Uysal, Ugur"]
[Black "Jafarli, Babak"]
[Result "1-0"]
[ECO "A38"]
[WhiteElo "2058"]
[BlackElo "2192"]
[Annotator "RC"]
[PlyCount "61"]
[EventDate "2024.06.23"]
[EventType "swiss"]
[EventCountry "TUR"]
[SourceTitle "playchess.com"]
[Source "ChessBase"]
[SourceQuality "1"]
[TimeControl "5400+30"]

1. Nf3 {[%emt 0:01:00]} Nf6 {[%emt 0:04:00]} 2. d4 {[%emt 0:00:30]} c5 {[%emt 0:00:30]} 3. c4 {[%emt 0:00:30]} cxd4 {[%emt 0:00:30]} 4. Nxd4 {[%emt 0:00:30]} Nc6 {[%emt 0:00:30]} 5. g3 {[%emt 0:00:30]} g6 {[%emt 0:00:30]} 6. Bg2 {[%emt 0:00:30]} Bg7 {[%emt 0:00:30]} 7. O-O {[%emt 0:00:30]} O-O {[%emt 0:00:30]} 8. Nc2 {[%emt 0:00:30]} d6 {[%emt 0:00:30]} 9. Nc3 {[%emt 0:01:30]} Nd7 {[%emt 0:00:30]} 10. Qd2 {[%emt 0:04:30]} a5 {[%emt 0:02:30]} 11. b3 {[%emt 0:03:30]} Nc5 {[%emt 0:00:30]} 12. Bb2 {[%emt 0:08:30]} Be6 {[%emt 0:00:30]} 13. Rab1 {[%emt 0:01:30]} a4 {[%emt 0:08:30]} 14. b4 {[%emt 0:07:30]} Nd7 {[%emt 0:01:30]} 15. Nd5 {[%emt 0:01:30]} Bxd5 {[%emt 0:00:00]} 16. Bxd5 {[%emt 0:01:30]} Bxb2 {[%emt 0:02:00]} 17. Rxb2 {[%emt 0:00:30]} Nb6 {[%emt 0:00:00]} 18. Ne3 {[%emt 0:01:30]} Nxd5 {[%emt 0:03:00]} 19. cxd5 {[%emt 0:02:30]} Ne5 {[%emt 0:01:30]} 20. Rc1 {[%emt 0:02:30]} Qb6 {[%emt 0:04:30]} 21. Rbc2 {[%emt 0:02:30]} a3 {[%emt 0:07:30]} 22. Nc4 {[%emt 0:01:30]} Nxc4 {[%emt 0:00:30]} 23. Rxc4 {[%emt 0:00:00]} Qb5 {[%emt 0:06:30]} 24. Rc7 {[%emt 0:10:00]} Rfe8 {[%emt 0:04:30]} 25. R1c4 {[%emt 0:01:30]} h5 {[%emt 0:05:30]} 26. g4 {[%emt 0:07:30]} hxg4 {[%emt 0:00:30]} 27. Rxg4 {[%emt 0:03:30]} Rac8 {[%emt 0:00:30]} 28. Qh6 {[%emt 0:01:30]} Rxc7 {[%emt 0:01:30]} 29. Rh4 {[%emt 0:00:30]} Rc1+ {[%emt 0:00:00]} 30. Qxc1 {[%emt 0:00:00]} e6 {[%emt 0:00:00]} 31. Qh6 {[%emt 0:00:00]} 1-0

[Event "10th Cesme Open-A 2024"]
[Site "Cesme"]
[Date "2024.06.28"]
[Round "7"]
[White "Portakalci, Yusuf"]
[Black "Ozkan, Ervin"]
[Result "1/2-1/2"]
[ECO "D02"]
[WhiteElo "2034"]
[BlackElo "2147"]
[Annotator "RC"]
[PlyCount "154"]
[EventDate "2024.06.23"]
[EventType "swiss"]
[EventCountry "TUR"]
[SourceTitle "playchess.com"]
[Source "ChessBase"]
[SourceQuality "1"]
[TimeControl "5400+30"]

1. d4 {[%emt 0:04:00]} d5 {[%emt 0:01:00]} 2. Bf4 {[%emt 0:03:30]} Nf6 {[%emt 0:00:30]} 3. e3 {[%emt 0:00:30]} c5 {[%emt 0:00:30]} 4. Nf3 {[%emt 0:05:30]} Nc6 {[%emt 0:00:30]} 5. Nbd2 {[%emt 0:00:00]} Bf5 {[%emt 0:06:30]} 6. c3 {[%emt 0:00:00]} Qb6 {[%emt 0:00:30]} 7. Qb3 {[%emt 0:00:30]} c4 {[%emt 0:00:30]} 8. Qxb6 {[%emt 0:00:30]} axb6 {[%emt 0:00:30]} 9. Nh4 {[%emt 0:08:30]} Bd7 {[%emt 0:10:30]} 10. a3 {[%emt 0:06:30]} b5 {[%emt 0:00:30]} 11. Rc1 {[%emt 0:04:30]} h6 {[%emt 0:00:30]} 12. Nhf3 {[%emt 0:00:30]} Bf5 {[%emt 0:00:30]} 13. h3 {[%emt 0:00:30]} Nd7 {[%emt 0:00:30]} 14. g4 {[%emt 0:00:30]} Bh7 {[%emt 0:00:30]} 15. Bg2 {[%emt 0:00:30]} Nb6 {[%emt 0:00:30]} 16. Ne5 {[%emt 0:00:30]} f6 {[%emt 0:00:30]} 17. Nxc6 {[%emt 0:00:30]} bxc6 {[%emt 0:00:30]} 18. e4 {[%emt 0:00:30]} e6 {[%emt 0:00:30]} 19. O-O {[%emt 0:00:30]} Na4 {[%emt 0:00:30]} 20. Rb1 {[%emt 0:31:30]} Kd7 {[%emt 0:37:30]} 21. Rfe1 {[%emt 0:02:30]} Bd6 {[%emt 0:12:30]} 22. Bxd6 {[%emt 0:07:30]} Kxd6 {[%emt 0:00:00]} 23. f4 {[%emt 0:01:30]} Rhe8 {[%emt 0:04:00]} 24. Nf1 {[%emt 0:06:10]} g5 {[%emt 0:02:30]} 25. f5 {[%emt 0:03:33]} exf5 {[%emt 0:04:02]} 26. gxf5 {[%emt 0:02:03]} dxe4 {[%emt 0:02:16]} 27. Ng3 {[%emt 0:01:55]} Kc7 {[%emt 0:00:06]} 28. Rxe4 {[%emt 0:01:00]} h5 {[%emt 0:01:18]} 29. Rbe1 {[%emt 0:07:05]} Rxe4 {[%emt 0:00:40]} 30. Rxe4 {[%emt 0:00:30]} h4 {[%emt 0:00:30]} 31. Re7+ {[%emt 0:00:00]} Kb6 {[%emt 0:00:00]} 32. Ne4 {[%emt 0:00:50]} Bxf5 {[%emt 0:00:09]} 33. Nxf6 {[%emt 0:02:15]} Rf8 {[%emt 0:03:37]} 34. Ne8 {[%emt 0:00:15]} Nxb2 {[%emt 0:00:22]} 35. Nd6 {[%emt 0:00:24]} Bc8 {[%emt 0:00:57]} 36. Ne4 {[%emt 0:00:02]} Nd3 {[%emt 0:00:14]} 37. Kh2 {[%emt 0:00:57]} g4 {[%emt 0:01:41]} 38. hxg4 {[%emt 0:00:30]} Bxg4 {[%emt 0:00:00]} 39. Nd6 {[%emt 0:00:14]} Bc8 {[%emt 0:00:21]} 40. a4 {[%emt 0:00:55]} Rd8 {[%emt 0:01:34]} 41. Nxc8+ {[%emt 0:00:58]} Rxc8 {[%emt 0:00:30]} 42. axb5 {[%emt 0:00:00]} cxb5 {[%emt 0:00:14]} 43. Re6+ {[%emt 0:00:12]} Kc7 {[%emt 0:00:30]} 44. Rc6+ {[%emt 0:00:07]} Kd8 {[%emt 0:01:13]} 45. Rxc8+ {[%emt 0:00:30]} Kxc8 {[%emt 0:00:00]} 46. Bc6 {[%emt 0:00:22]} b4 {[%emt 0:01:52]} 47. cxb4 {[%emt 0:00:02]} c3 {[%emt 0:00:42]} 48. Ba4 {[%emt 0:00:03]} Nxb4 {[%emt 0:00:00]} 49. Kh3 {[%emt 0:00:56]} Kc7 {[%emt 0:00:00]} 50. Kxh4 {[%emt 0:00:22]} Kd6 {[%emt 0:00:00]} 51. Bb3 {[%emt 0:00:00]} Nc6 {[%emt 0:01:16]} 52. Kg3 {[%emt 0:02:23]} Nxd4 {[%emt 0:00:04]} 53. Bd1 {[%emt 0:00:00]} Kd5 {[%emt 0:00:18]} 54. Kf4 {[%emt 0:00:59]} Kc4 {[%emt 0:00:06]} 55. Ke3 {[%emt 0:00:00]} Nf5+ {[%emt 0:00:57]} 56. Ke4 {[%emt 0:00:36]} Ne7 {[%emt 0:00:37]} 57. Bc2 {[%emt 0:00:15]} Nc6 {[%emt 0:00:21]} 58. Ke3 {[%emt 0:00:16]} Kb4 {[%emt 0:01:20]} 59. Ke2 {[%emt 0:01:26]} Ka3 {[%emt 0:00:53]} 60. Kd1 {[%emt 0:00:13]} Kb2 {[%emt 0:00:42]} 61. Bh7 {[%emt 0:00:17]} Ne5 {[%emt 0:00:26]} 62. Bf5 {[%emt 0:00:17]} Ng4 {[%emt 0:00:48]} 63. Bh7 {[%emt 0:00:15]} Ne3+ {[%emt 0:00:13]} 64. Ke2 {[%emt 0:00:06]} Ng2 {[%emt 0:01:16]} 65. Kd1 {[%emt 0:00:05]} Nf4 {[%emt 0:00:38]} 66. Bf5 {[%emt 0:00:11]} Kb3 {[%emt 0:00:24]} 67. Bc2+ {[%emt 0:00:57]} Kc4 {[%emt 0:00:30]} 68. Bh7 {[%emt 0:00:00]} Kd4 {[%emt 0:00:08]} 69. Kc2 {[%emt 0:00:00]} Nd5 {[%emt 0:00:17]} 70. Bg6 {[%emt 0:00:21]} Nf4 {[%emt 0:00:33]} 71. Bh7 {[%emt 0:00:30]} Ng2 {[%emt 0:00:00]} 72. Bg6 {[%emt 0:00:05]} Ne1+ {[%emt 0:00:08]} 73. Kc1 {[%emt 0:00:11]} Ng2 {[%emt 0:02:06]} 74. Kc2 {[%emt 0:00:24]} Kc4 {[%emt 0:00:42]} 75. Bf7+ {[%emt 0:00:30]} Kb4 {[%emt 0:00:30]} 76. Bg6 {[%emt 0:00:11]} Ne3+ {[%emt 0:00:00]} 77. Kc1 {[%emt 0:00:00]} c2 {[%emt 0:00:47]} 1/2-1/2